bitfinex/quotes_BTCUSD_20240906
["timestamp","ask_amount","ask_price","bid_price","bid_amount"]
[1725647902225,0.186271,53685.0,53684.0,0.248734]
[1725647902433,0.932357,53685.0,53684.0,0.248734]
[1725647902849,0.187271,53685.0,53684.0,0.248734]
[1725647903058,0.559814,53685.0,53684.0,0.248734]
[1725647903278,0.559814,53685.0,53684.0,0.00164]
[1725647903491,0.559814,53685.0,53684.0,0.38474]
[1725647903492,0.001,53685.0,53684.0,0.38474]
[1725647903697,0.472458,53698.0,53684.0,0.38474]
[1725647903698,0.1,53697.0,53684.0,0.38474]
[1725647903926,0.186249,53692.0,53684.0,0.38474]
[1725647904150,0.372484,53694.0,53685.0,0.21182493]
[1725647904375,0.372484,53694.0,53686.0,0.09337979]
[1725647904376,0.1,53693.0,53686.0,0.09337979]
[1725647904651,0.001,53696.0,53695.0,0.37]
[1725647904884,0.55430836,53708.0,53695.0,0.37]
[1725647904885,0.0235,53719.0,53695.0,0.37]
[1725647905129,0.2043,53723.0,53702.0,0.1619]
[1725647905130,0.186209,53703.0,53702.0,0.1619]
[1725647905376,0.558627,53703.0,53702.0,0.1619]
[1725647905599,0.186209,53703.0,53702.0,0.1619]
[1725647905823,0.22624181,53717.0,53702.0,0.1619]
[1725647906264,0.372425,53702.0,53697.0,0.1656]
[1725647906473,0.372425,53702.0,53698.0,0.55430836]
[1725647906680,0.0470836,53716.0,53697.0,0.1656]
[1725647906681,0.186205,53705.0,53697.0,0.1656]
[1725647906892,0.01,53724.0,53705.0,0.186201]
[1725647906893,0.372307,53719.0,53705.0,0.186201]
[1725647907111,0.372307,53719.0,53708.0,0.1749]
[1725647907112,0.55430836,53718.0,53708.0,0.1749]
[1725647907326,0.008,53719.0,53708.0,0.1749]
[1725647907327,0.930942,53709.0,53708.0,0.1749]
[1725647907534,0.186188,53709.0,53708.0,0.21258]
[1725647907773,0.01,53728.0,53704.0,0.21]
[1725647907774,0.22624181,53710.0,53704.0,0.21]
[1725647908013,0.0235,53719.0,53701.0,0.001632]
[1725647908014,0.186212,53702.0,53701.0,0.001632]
[1725647908243,0.558637,53702.0,53701.0,0.001632]
[1725647908484,1.031062,53702.0,53701.0,0.001632]
[1725647908727,1.62972881,53702.0,53701.0,0.001632]
[1725647909001,1.403487,53702.0,53701.0,0.001632]
[1725647909238,1.62972881,53702.0,53701.0,0.001632]
[1725647909480,2.00215381,53702.0,53701.0,0.001632]
[1725647909951,1.90806706,53702.0,53701.0,0.001632]
[1725647910196,1.89803725,53702.0,53701.0,0.001632]
[1725647910419,1.89803725,53702.0,53671.0,0.06582144]
[1725647910420,1.129457,53685.0,53675.0,0.55430836]
[1725647910651,1.129457,53685.0,53671.0,0.06582144]
[1725647910652,0.01,53678.0,53671.0,0.06582144]
[1725647910869,3.07211262,53685.0,53671.0,0.06582144]
[1725647910870,1.74639861,53672.0,53671.0,0.05658657]
[1725647911077,1.74639861,53672.0,53635.0,0.0103729]
[1725647911078,1.74639861,53672.0,53650.0,0.501]
[1725647911079,0.186389,53651.0,53650.0,0.501]
[1725647911325,0.186389,53651.0,53635.0,0.0103729]
[1725647911326,1.707726,53644.0,53643.0,0.37596006]
[1725647911558,2.36909195,53644.0,53643.0,0.18179898]
[1725647911777,2.36909195,53644.0,53635.0,0.0103729]
[1725647911778,2.19059846,53643.0,53642.0,0.00287052]
[1725647911993,2.19059846,53643.0,53635.0,0.0103729]
[1725647911994,0.710824,53636.0,53635.0,0.0103729]
[1725647912212,0.710824,53636.0,53628.0,0.07138656]
[1725647912213,0.196459,53631.0,53628.0,0.07138656]
[1725647912443,0.196459,53631.0,53614.0,0.0764016]
[1725647912444,0.01,53629.0,53614.0,0.0732416]
[1725647912681,0.01,53623.0,53600.0,0.564]
[1725647912912,0.11,53630.0,53609.0,0.003]
[1725647912913,0.373031,53615.0,53609.0,0.003]
[1725647913114,0.1,53630.0,53623.0,0.003]
[1725647913115,0.23624181,53627.0,53623.0,0.003]
[1725647913341,0.22624181,53637.0,53633.0,0.003]
[1725647913542,0.22624181,53637.0,53608.0,0.2175]
[1725647913543,0.1311,53647.0,53627.0,0.003]
[1725647913544,0.559408,53628.0,53627.0,0.003]
[1725647913791,0.1411,53647.0,53640.0,0.003]
[1725647913792,0.1311,53647.0,53640.0,0.003]
[1725647914037,0.01,53656.0,53632.0,0.003]
[1725647914038,0.55430836,53646.0,53632.0,0.003]
[1725647914285,0.33399691,53649.0,53637.0,0.003]
[1725647914512,0.33399691,53649.0,53630.0,0.2075]
[1725647914513,0.186389,53652.0,53639.0,0.003]
[1725647914725,0.55430836,53654.0,53646.0,0.003]
[1725647914941,0.55430836,53654.0,53624.0,0.372966]
[1725647914942,0.372967,53624.0,53619.0,0.003]
[1725647915156,0.1311,53648.0,53609.0,0.003]
[1725647915157,0.33399691,53626.0,53609.0,0.003]
[1725647915420,0.372831,53644.0,53609.0,0.003]
[1725647915421,0.33399691,53638.0,53624.0,0.003]
[1725647915657,0.01,53646.0,53632.0,0.003]
[1725647915658,0.55430836,53637.0,53632.0,0.003]
[1725647915879,0.02,53645.0,53628.0,0.2129]
[1725647916083,0.02,53645.0,53619.0,0.1661]
[1725647916084,0.1311,53655.0,53634.0,0.003]
[1725647916304,0.55430836,53654.0,53637.0,0.003]
[1725647916508,0.33399691,53659.0,53647.0,0.003]
[1725647916509,0.372748,53656.0,53647.0,0.003]
[1725647916709,0.33399691,53659.0,53647.0,0.003]
[1725647916710,0.001,53652.0,53647.0,0.003]
[1725647916952,0.001,53652.0,53647.0,0.0025]
[1725647917169,0.186398,53649.0,53640.0,0.0025]
[1725647917398,0.33399691,53653.0,53640.0,0.0025]
[1725647917649,0.186387,53652.0,53640.0,0.0025]
[1725647917885,0.33399691,53653.0,53640.0,0.0025]
[1725647918111,0.014,53654.0,53637.0,0.001]
[1725647918112,0.0075,53640.0,53637.0,0.001]
[1725647918332,0.014,53654.0,53637.0,0.001]
[1725647918333,1.29366891,53638.0,53637.0,0.001]
[1725647918568,3.24053791,53638.0,53637.0,0.001]
[1725647918775,0.43399691,53638.0,53637.0,0.001]
[1725647919238,0.37288,53637.0,53624.0,0.0025]
[1725647919443,0.515909,53647.0,53620.0,0.0025]
[1725647919444,0.02,53640.0,53620.0,0.0025]
[1725647919676,0.02,53640.0,53600.0,0.564]
[1725647919677,0.0075,53618.0,53600.0,0.564]
[1725647919905,0.89368691,53601.0,53600.0,0.565634]
[1725647920127,1.63994091,53601.0,53600.0,0.565634]
[1725647920347,2.97944091,53601.0,53600.0,0.565634]
[1725647920553,3.47456791,53601.0,53600.0,0.565634]
[1725647920796,3.47456791,53601.0,53588.0,0.01268174]
[1725647920797,3.91590784,53601.0,53588.0,0.01268174]
[1725647921008,3.91590784,53601.0,53582.0,0.38671875]
[1725647921009,0.0295,53583.0,53582.0,0.38671875]
[1725647921235,0.0295,53583.0,53549.0,0.00103665]
[1725647921236,1.336127,53573.0,53549.0,0.00103665]
[1725647921465,0.0275,53553.0,53549.0,0.00103665]
[1725647921686,1.8908273,53553.0,53552.0,0.38050275]
[1725647921908,0.61190839,53553.0,53552.0,0.38300275]
[1725647922128,0.61190839,53553.0,53552.0,0.38050275]
[1725647922129,0.560191,53553.0,53552.0,0.38050275]
[1725647922343,0.660191,53553.0,53552.0,0.38050275]
[1725647922567,0.18673,53553.0,53552.0,0.38050275]
[1725647922796,0.186703,53561.0,53560.0,0.0025]
[1725647923025,0.186703,53561.0,53556.0,0.01]
[1725647923026,0.01,53590.0,53577.0,0.0025]
[1725647923027,0.373213,53589.0,53577.0,0.0025]
[1725647923268,0.373213,53589.0,53579.0,0.0125]
[1725647923269,0.373211,53589.0,53579.0,0.0125]
[1725647923506,0.56180836,53600.0,53587.0,0.01]
[1725647923507,0.55430836,53600.0,53587.0,0.01]
[1725647923730,0.06025955,53608.0,53585.0,0.0025]
[1725647923731,0.55430836,53599.0,53592.0,0.01]
[1725647923968,0.33399691,53597.0,53575.0,0.028355]
[1725647924193,0.373085,53607.0,53582.0,0.186627]
[1725647924194,0.004,53586.0,53582.0,0.186627]
[1725647924689,0.004,53586.0,53569.0,0.186674]
[1725647924896,0.004,53586.0,53551.0,0.07536183]
[1725647924897,0.004,53586.0,53563.0,0.2254]
[1725647924898,0.33399691,53578.0,53563.0,0.2254]
[1725647925127,0.33399691,53578.0,53563.0,0.2204]
[1725647925556,0.0862,53588.0,53563.0,0.2204]
[1725647925557,0.33399691,53585.0,53563.0,0.2204]
[1725647925761,0.186638,53580.0,53563.0,0.24244]
[1725647925967,0.0912,53596.0,53564.0,0.00373385]
[1725647926180,0.55430836,53598.0,53566.0,0.33399691]
[1725647926398,0.55430836,53598.0,53567.0,0.21148468]
[1725647926612,0.006,53585.0,53581.0,0.18663]
[1725647926815,0.006,53585.0,53584.0,0.358722]
[1725647927041,0.55430836,53615.0,53591.0,0.186596]
[1725647927042,0.186523,53613.0,53591.0,0.186596]
[1725647927252,0.186523,53613.0,53584.0,0.1721]
[1725647927253,0.55430836,53601.0,53592.0,0.00373159]
[1725647927459,0.55430836,53615.0,53601.0,0.00023716]
[1725647927670,0.01,53629.0,53601.0,0.00023716]
[1725647927671,0.70695691,53625.0,53601.0,0.00023716]
[1725647927877,0.05,53652.0,53601.0,0.00023716]
[1725647927878,0.55430836,53623.0,53603.0,0.1629]
[1725647928100,0.51028,53637.0,53604.0,0.05362552]
[1725647928101,0.55430836,53622.0,53604.0,0.05362552]
[1725647928319,0.33481391,53626.0,53604.0,0.05362552]
[1725647928320,0.000817,53626.0,53604.0,0.2272]
[1725647928764,0.000817,53626.0,53605.0,0.0287302]
[1725647928998,0.000817,53626.0,53604.0,0.2272]
[1725647929227,0.33399691,53621.0,53604.0,0.2272]
[1725647929442,0.373009,53618.0,53604.0,0.2272]
[1725647929674,0.33399691,53621.0,53604.0,0.26623372]
[1725647929901,0.000817,53626.0,53601.0,0.00023716]
[1725647929903,0.37312,53602.0,53601.0,0.00023716]
[1725647930136,0.18656,53602.0,53601.0,0.00023716]
[1725647930367,0.9328,53602.0,53601.0,0.00023716]
[1725647930599,0.1,53602.0,53589.0,0.55454552]
[1725647931043,0.1,53601.0,53589.0,0.00023716]
[1725647931281,0.01,53617.0,53589.0,0.00023716]
[1725647931282,0.373062,53611.0,53589.0,0.00023716]
[1725647931519,0.88830527,53617.0,53589.0,0.00023716]
[1725647931520,0.55430836,53617.0,53592.0,0.33399691]
[1725647931814,0.002817,53626.0,53597.0,0.2266]
[1725647931815,0.55430836,53616.0,53597.0,0.2266]
[1725647932080,0.25,53600.0,53597.0,0.2266]
[1725647932550,0.25,53600.0,53593.0,0.19989655]
[1725647932551,0.25,53600.0,53593.0,0.13287336]
[1725647932823,0.25,53600.0,53593.0,0.09907681]
[1725647933084,0.24984089,53600.0,53593.0,0.09907681]
[1725647933548,0.25084089,53600.0,53597.0,0.005]
[1725647933827,0.25084089,53600.0,53598.0,0.023]
[1725647934042,0.25084089,53600.0,53598.0,0.02673094]
[1725647934043,0.24984089,53600.0,53598.0,0.02673094]
[1725647934258,0.05084089,53600.0,53599.0,0.22655819]
[1725647934464,0.55430836,53620.0,53599.0,0.0687186]
[1725647934725,0.55430836,53620.0,53603.0,0.186555]
[1725647934940,0.55430836,53620.0,53604.0,0.02673006]
[1725647935153,0.33399691,53621.0,53604.0,0.02673006]
[1725647935368,0.000817,53626.0,53604.0,0.02673006]
[1725647935369,0.000817,53626.0,53606.0,0.01]
[1725647935591,0.000817,53626.0,53608.0,0.2369]
[1725647935811,0.33399691,53634.0,53610.0,0.2369]
[1725647936025,0.55430836,53632.0,53624.0,0.1971]
[1725647936293,0.33399691,53640.0,53624.0,0.1971]
[1725647936512,0.33399691,53640.0,53624.0,0.38731203]
[1725647936732,0.001,53626.0,53624.0,0.20082903]
[1725647936977,0.05744942,53651.0,53626.0,0.2464]
[1725647936978,0.00082,53651.0,53626.0,0.2464]
[1725647937222,0.00082,53651.0,53627.0,0.023]
[1725647937223,0.55430836,53642.0,53627.0,0.023]
[1725647937442,0.33399691,53647.0,53629.0,0.372931]
[1725647937675,0.00082,53651.0,53631.0,1.179795]
[1725647937676,0.001,53632.0,53631.0,1.179795]
[1725647937903,0.00082,53651.0,53631.0,0.2475]
[1725647938142,0.00082,53651.0,53632.0,0.02847768]
[1725647938356,0.00082,53651.0,53637.0,0.01]
[1725647938648,0.0465,53640.0,53638.0,0.46398003]
[1725647938865,0.00082,53651.0,53639.0,0.02]
[1725647939080,0.00082,53651.0,53640.0,0.44397937]
[1725647939289,0.00082,53651.0,53645.0,0.372821]
[1725647939507,0.00082,53651.0,53646.0,0.023]
[1725647939958,0.00082,53651.0,53645.0,0.186409]
[1725647940176,0.00082,53651.0,53646.0,0.023]
[1725647940392,0.00082,53651.0,53646.0,0.00372698]
[1725647940609,0.00082,53651.0,53650.0,0.186393]
[1725647940871,0.00082,53651.0,53650.0,0.48082709]
[1725647941101,0.00081,53671.0,53653.0,0.01]
[1725647941323,0.55430836,53667.0,53654.0,0.0267262]
[1725647941532,0.00081,53671.0,53654.0,0.023]
[1725647941746,0.00081,53671.0,53655.0,0.00372633]
[1725647941961,0.00081,53671.0,53656.0,0.04631073]
[1725647942180,0.00081,53671.0,53657.0,0.3764632]
[1725647942425,0.00081,53671.0,53664.0,0.186343]
[1725647942646,0.00082,53674.0,53669.0,0.01]
[1725647942867,0.00082,53680.0,53665.0,0.39357801]
[1725647942868,0.00082,53680.0,53679.0,0.931462]
[1725647943089,0.00082,53692.0,53684.0,0.2502]
[1725647943340,0.00082,53692.0,53691.0,0.18625]
[1725647943555,0.00082,53692.0,53691.0,0.96797569]
[1725647943817,0.00082,53692.0,53691.0,1.80572908]
[1725647944039,0.33399691,53717.0,53691.0,1.80572908]
[1725647944040,0.33399691,53717.0,53699.0,0.2502]
[1725647944275,0.55430836,53719.0,53699.0,0.2502]
[1725647944276,0.02435359,53701.0,53700.0,0.02502]
[1725647944514,0.33399691,53705.0,53699.0,0.2502]
[1725647944966,0.33399691,53705.0,53691.0,0.0533]
[1725647944967,0.33399691,53705.0,53691.0,0.0303]
[1725647945181,0.1835,53711.0,53692.0,0.2431]
[1725647945182,0.70644891,53699.0,53692.0,0.2431]
[1725647945400,0.33399691,53699.0,53692.0,0.2431]
[1725647945830,0.558732,53693.0,53692.0,0.2431]
[1725647946034,0.558732,53693.0,53692.0,0.27184]
[1725647946294,0.33399691,53693.0,53691.0,0.014]
[1725647946523,0.558741,53692.0,53691.0,0.014]
[1725647946754,0.372589,53679.0,53675.0,0.247]
[1725647946962,0.372589,53679.0,53665.0,0.001632]
[1725647946963,0.186327,53669.0,53667.0,0.247]
[1725647947178,0.70660291,53676.0,53667.0,0.247]
[1725647947391,0.186313,53674.0,53667.0,0.247]
[1725647947630,0.372483,53694.0,53667.0,0.247]
[1725647947631,0.33399691,53688.0,53668.0,0.0428932]
[1725647947868,0.186327,53669.0,53668.0,0.0428932]
[1725647948103,0.186327,53669.0,53665.0,0.001632]
[1725647948104,0.559012,53666.0,53665.0,0.001632]
[1725647948599,0.1,53682.0,53665.0,0.001632]
[1725647948600,0.372503,53691.0,53665.0,0.001632]
[1725647948857,0.55430836,53687.0,53669.0,0.372651]
[1725647949112,0.33399691,53694.0,53670.0,0.186323]
[1725647949113,0.372545,53685.0,53670.0,0.186323]
[1725647949373,0.37242,53703.0,53671.0,0.24262536]
[1725647949374,0.33399691,53700.0,53671.0,0.24262536]
[1725647949643,0.33399691,53700.0,53676.0,0.372601]
[1725647949644,0.186251,53691.0,53676.0,0.372601]
[1725647949874,0.186259,53689.0,53677.0,0.02672495]
[1725647950252,0.372502,53691.0,53678.0,0.0213031]
[1725647950253,0.186262,53688.0,53678.0,0.0213031]
[1725647950422,0.186289,53680.0,53679.0,0.2389]
[1725647950651,0.33399691,53694.0,53679.0,0.2389]
[1725647950652,0.33399691,53694.0,53679.0,0.2619]
[1725647950889,0.33399691,53700.0,53679.0,0.2619]
[1725647951128,0.372544,53685.0,53679.0,0.2389]
[1725647951377,0.55430836,53704.0,53671.0,0.2389]
[1725647951378,0.33399691,53681.0,53671.0,0.2389]
[1725647951649,0.33399691,53687.0,53672.0,0.08072084]
[1725647951906,0.1,53690.0,53671.0,0.2389]
[1725647951907,0.558949,53672.0,53671.0,0.2389]
[1725647952135,0.931582,53672.0,53671.0,0.2389]
[1725647952408,0.558949,53672.0,53671.0,0.2389]
[1725647952646,0.372583,53680.0,53671.0,0.26279]
[1725647952887,0.186285,53682.0,53671.0,0.449109]
[1725647953149,0.186283,53682.0,53671.0,0.449106]
[1725647953381,0.186283,53682.0,53671.0,0.26379]
[1725647953637,0.372545,53685.0,53672.0,0.0636446]
[1725647953899,0.18629,53680.0,53673.0,0.023]
[1725647954141,0.1,53690.0,53673.0,0.023]
[1725647954142,0.372545,53685.0,53673.0,0.209311]
[1725647954399,0.186261,53689.0,53680.0,0.186288]
[1725647954623,0.33399691,53700.0,53674.0,0.05093566]
[1725647954624,0.372475,53695.0,53677.0,0.186297]
[1725647954902,0.372438,53701.0,53678.0,0.47185239]
[1725647955131,0.372438,53701.0,53685.0,0.37254]
[1725647955389,0.372394,53707.0,53681.0,0.37257]
[1725647955390,0.372394,53707.0,53686.0,0.02672441]
[1725647955622,0.33399691,53712.0,53690.0,0.372505]
[1725647955886,0.33399691,53712.0,53689.0,0.2693]
[1725647955887,0.372363,53711.0,53691.0,0.39922408]
[1725647956143,0.05256951,53721.0,53693.0,0.372486]
[1725647956144,0.372399,53706.0,53693.0,0.372486]
[1725647956408,0.372399,53706.0,53692.0,0.06685241]
[1725647956409,0.93122,53693.0,53692.0,0.06685241]
[1725647956662,0.93122,53693.0,53689.0,0.2693]
[1725647956663,0.558762,53690.0,53689.0,0.2693]
[1725647956917,1.303778,53690.0,53689.0,0.2693]
[1725647957133,0.05256951,53705.0,53689.0,0.2693]
[1725647957134,0.38656642,53705.0,53689.0,0.2693]
[1725647957362,0.558726,53694.0,53693.0,0.008]
[1725647958118,0.931207,53694.0,53693.0,0.008]
[1725647958606,0.931207,53694.0,53693.0,0.02773]
[1725647958839,0.931207,53694.0,53676.0,0.372599]
[1725647958840,0.186303,53676.0,53675.0,0.2734]
[1725647959302,0.05256951,53694.0,53675.0,0.2734]
[1725647959303,0.372593,53678.0,53675.0,0.2734]
[1725647959537,0.558898,53677.0,53676.0,0.02734]
[1725647959788,0.186269,53686.0,53676.0,0.02734]
[1725647960016,0.372454,53698.0,53676.0,0.02734]
[1725647960017,0.18626,53689.0,53680.0,0.186287]
[1725647960276,0.18626,53689.0,53676.0,0.02734]
[1725647960277,0.61649691,53700.0,53677.0,0.372598]
[1725647960532,0.61649691,53700.0,53688.0,0.2555]
[1725647960533,0.37244,53700.0,53688.0,0.2555]
[1725647960768,0.372446,53700.0,53688.0,0.2555]
[1725647961033,0.372452,53699.0,53688.0,0.2555]
[1725647961293,0.55430836,53713.0,53688.0,0.2555]
[1725647961294,0.33399691,53701.0,53688.0,0.2555]
[1725647961611,0.372462,53697.0,53689.0,0.02555]
[1725647961794,0.372469,53696.0,53689.0,0.02555]
[1725647962064,0.37236,53712.0,53689.0,0.02555]
[1725647962065,0.372455,53698.0,53689.0,0.02555]
[1725647962358,0.92666836,53712.0,53681.0,0.55430836]
[1725647962359,0.1836,53693.0,53681.0,0.2587]
[1725647962604,0.1836,53693.0,53686.0,0.55430836]
[1725647962889,0.133209,53711.0,53674.0,0.2587]
[1725647962890,0.133209,53711.0,53680.0,0.001]
[1725647962891,0.33399691,53700.0,53680.0,0.001]
[1725647963149,0.33399691,53700.0,53674.0,0.2587]
[1725647963150,0.2612,53706.0,53681.0,0.2997842]
[1725647963151,0.1,53705.0,53681.0,0.2997842]
[1725647963400,0.186227,53698.0,53689.0,0.186254]
[1725647963663,0.1,53705.0,53681.0,0.2960598]
[1725647963664,0.372523,53688.0,53681.0,0.2960598]
[1725647963918,0.186259,53689.0,53681.0,0.2960598]
[1725647964182,0.186245,53693.0,53684.0,0.186274]
[1725647964420,0.1,53705.0,53685.0,0.0519582]
[1725647964653,0.372454,53698.0,53687.0,0.372526]
[1725647964921,0.372361,53712.0,53694.0,0.18624]
[1725647964922,0.33399691,53712.0,53694.0,0.18624]
[1725647965156,0.186207,53704.0,53694.0,0.37248]
[1725647965386,0.82200836,53720.0,53693.0,0.2655]
[1725647965387,0.33399691,53718.0,53695.0,0.00372406]
[1725647965607,0.372306,53720.0,53706.0,0.4686]
[1725647965825,0.372302,53720.0,53707.0,0.00372346]
[1725647966040,0.372302,53720.0,53709.0,0.186187]
[1725647966041,0.186161,53717.0,53709.0,0.186187]
[1725647966256,0.55430836,53735.0,53706.0,0.4686]
[1725647966257,0.33399691,53718.0,53706.0,0.4686]
[1725647966465,0.372357,53712.0,53706.0,0.2748]
[1725647966674,0.186186,53710.0,53707.0,0.02748]
[1725647966917,0.05256951,53727.0,53707.0,0.02748]
[1725647966918,0.33399691,53723.0,53707.0,0.02748]
[1725647967133,0.33399691,53718.0,53707.0,0.02748]
[1725647967346,0.372323,53717.0,53709.0,0.003]
[1725647967566,0.33399691,53723.0,53709.0,0.003]
[1725647967769,0.186182,53711.0,53710.0,0.030528]
[1725647967986,0.33399691,53718.0,53710.0,0.030528]
[1725647968202,0.33399691,53729.0,53714.0,0.372341]
[1725647968434,0.33399691,53729.0,53715.0,0.2642]
[1725647968435,0.186141,53723.0,53715.0,0.2642]
[1725647968684,0.372275,53724.0,53710.0,0.030528]
[1725647968685,0.186181,53711.0,53710.0,0.030528]
[1725647968924,0.33399691,53717.0,53708.0,0.2573]
[1725647968925,0.186173,53714.0,53708.0,0.2573]
[1725647969136,0.03368529,53730.0,53708.0,0.2573]
[1725647969137,0.33399691,53723.0,53708.0,0.2573]
[1725647969423,0.00081,53746.0,53710.0,0.372368]
[1725647969424,0.33399691,53730.0,53710.0,0.372368]
[1725647969637,0.33399691,53730.0,53709.0,0.0629684]
[1725647969854,0.33399691,53730.0,53715.0,0.002]
[1725647969855,0.186154,53719.0,53715.0,0.002]
[1725647970073,0.558492,53716.0,53715.0,0.002]
[1725647970301,0.558492,53716.0,53709.0,0.0629684]
[1725647970302,0.02510427,53734.0,53708.0,0.2573]
[1725647970303,0.186188,53709.0,53708.0,0.2573]
[1725647970543,0.186188,53709.0,53700.0,0.1836]
[1725647970544,0.33399691,53711.0,53709.0,0.02573]
[1725647970754,0.372356,53712.0,53709.0,0.032]
[1725647970755,0.558555,53710.0,53709.0,0.032]
[1725647970971,0.930925,53710.0,53709.0,0.03]
[1725647971626,0.930925,53710.0,53700.0,0.2775]
[1725647971627,0.186216,53701.0,53700.0,0.2775]
[1725647971852,0.93108,53701.0,53700.0,0.2875]
[1725647972060,0.93108,53701.0,53695.0,0.01]
[1725647972061,0.1,53701.0,53695.0,0.01]
[1725647972274,1.303634,53696.0,53695.0,0.06075]
[1725647973200,0.186233,53696.0,53695.0,0.06075]
[1725647973427,0.5587,53696.0,53695.0,0.06075]
[1725647974102,0.372377,53709.0,53695.0,0.06075]
[1725647974103,0.558606,53705.0,53704.0,0.01]
[1725647974377,1.48471636,53740.0,53695.0,0.05075]
[1725647974378,0.186212,53702.0,53701.0,0.01]
[1725647974610,0.558616,53704.0,53703.0,0.01]
[1725647975084,0.558616,53704.0,53696.0,0.032825]
[1725647975085,0.558627,53703.0,53702.0,0.01]
[1725647975351,0.93115,53697.0,53696.0,0.03]
[1725647975587,0.93115,53697.0,53696.0,0.06115]
[1725647975861,0.18623,53697.0,53696.0,0.06115]
[1725647976107,0.93115,53697.0,53696.0,0.06115]
[1725647976344,0.372421,53703.0,53702.0,0.01]
[1725647976633,0.372421,53703.0,53699.0,0.02]
[1725647976634,0.33399691,53716.0,53709.0,0.01]
[1725647976635,0.37237,53710.0,53709.0,0.01]
[1725647976876,0.558518,53714.0,53713.0,0.01]
[1725647977151,0.558518,53714.0,53713.0,0.04045]
[1725647977385,0.930865,53714.0,53713.0,0.04045]
[1725647977865,0.930865,53714.0,53713.0,0.03045]
[1725647977866,1.675549,53714.0,53713.0,0.03045]
[1725647978109,1.403202,53714.0,53713.0,0.03045]
[1725647978603,0.930855,53714.0,53713.0,0.04045]
[1725647978855,0.000816,53719.0,53718.0,0.01]
[1725647979115,0.000816,53719.0,53718.0,0.03]
[1725647979116,0.186969,53719.0,53718.0,0.03]
[1725647979358,0.186969,53719.0,53718.0,0.2137]
[1725647979359,0.000816,53719.0,53718.0,0.2137]
[1725647979630,0.000816,53719.0,53718.0,0.50397]
[1725647980559,0.000816,53719.0,53718.0,0.50047]
[1725647981125,0.000816,53719.0,53718.0,0.636627]
[1725647981410,0.000816,53719.0,53718.0,0.29377]
[1725647981690,0.000816,53719.0,53713.0,0.03645]
[1725647981691,1.303197,53714.0,53713.0,0.006]
[1725647981900,2.00953591,53714.0,53713.0,0.006]
[1725647982212,2.00953591,53714.0,53702.0,0.002]
[1725647982213,0.931045,53703.0,53702.0,0.002]
[1725647982415,0.558627,53703.0,53702.0,0.002]
[1725647983629,0.1,53714.0,53702.0,0.002]
[1725647983905,0.186183,53711.0,53704.0,0.186202]
[1725647984172,0.33399691,53722.0,53702.0,0.002]
[1725647984173,0.33399691,53722.0,53705.0,0.4719]
[1725647984413,0.186162,53717.0,53710.0,0.186183]
[1725647984648,0.186162,53717.0,53706.0,0.44650901]
[1725647984649,0.372299,53721.0,53711.0,0.023]
[1725647984883,0.186158,53718.0,53711.0,0.023]
[1725647985115,0.372285,53723.0,53707.0,0.2785]
[1725647985116,0.372348,53714.0,53707.0,0.2785]
[1725647985348,0.372348,53714.0,53708.0,0.261119]
[1725647985349,0.186172,53714.0,53708.0,0.261119]
[1725647985625,0.372343,53714.0,53708.0,0.074929]
[1725647985851,0.186179,53712.0,53708.0,0.074929]
[1725647986068,0.372339,53715.0,53709.0,0.186185]
[1725647986069,0.18617,53715.0,53709.0,0.186185]
[1725647986311,0.186164,53716.0,53711.0,0.007]
[1725647986832,0.3723,53721.0,53710.0,0.0911997]
[1725647986833,0.186973,53719.0,53713.0,0.186172]
[1725647987091,0.186973,53719.0,53712.0,0.023]
[1725647987092,0.000816,53719.0,53712.0,0.023]
[1725647987347,0.000816,53719.0,53714.0,0.2826]
[1725647987591,0.186167,53715.0,53714.0,0.2826]
[1725647987824,0.186166,53716.0,53714.0,0.2826]
[1725647988074,0.186167,53715.0,53714.0,0.2826]
[1725647988306,0.186164,53716.0,53714.0,0.32342197]
[1725647988570,0.186167,53715.0,53714.0,0.32342197]
[1725647988788,0.558502,53715.0,53714.0,0.32328372]
[1725647989036,0.558502,53715.0,53714.0,0.33028372]
[1725647989498,0.186167,53715.0,53714.0,0.32328372]
[1725647989742,0.186163,53717.0,53714.0,0.32328372]
[1725647989982,0.000816,53719.0,53715.0,0.05208827]
[1725647990201,0.372316,53718.0,53715.0,0.05208827]
[1725647990426,0.186162,53717.0,53715.0,0.05208827]
[1725647990667,0.186162,53717.0,53716.0,0.002]
[1725647990888,0.000816,53719.0,53718.0,0.002]
[1725647991138,0.000816,53719.0,53718.0,0.036655]
[1725647991350,0.186969,53719.0,53718.0,0.036655]
[1725647991786,0.559276,53719.0,53718.0,0.036655]
[1725647992028,0.559276,53719.0,53718.0,0.034655]
[1725647992029,1.30389,53719.0,53718.0,0.034655]
[1725647992244,0.931583,53719.0,53718.0,0.034655]
[1725647992492,0.559276,53719.0,53718.0,0.034655]
[1725647992710,0.186969,53719.0,53718.0,0.050655]
[1725647992951,0.186969,53719.0,53718.0,0.014]
[1725647992952,0.931583,53719.0,53718.0,0.014]
[1725647993227,0.931583,53719.0,53718.0,0.01384837]
[1725647993228,2.29899391,53719.0,53718.0,0.01384837]
[1725647993437,2.71301427,53719.0,53718.0,0.01384837]
[1725647993674,2.71301427,53719.0,53718.0,0.29234837]
[1725647993675,0.000816,53719.0,53718.0,0.29234837]
[1725647993897,0.186969,53719.0,53718.0,0.32158321]
[1725647994127,0.186969,53719.0,53718.0,0.30773484]
[1725647994128,0.000816,53719.0,53718.0,0.30773484]
[1725647994622,0.000816,53719.0,53718.0,0.32173484]
[1725647994874,0.186969,53719.0,53718.0,0.32173484]